bitfinex/quotes_ETHUSD_20240614
["timestamp","ask_amount","ask_price","bid_price","bid_amount"]
[1718386589214,2.93322,3409.3,3409.1,2.93331]
[1718386589452,2.93315,3409.3,3409.0,2.93339]
[1718386589871,2.93315,3409.3,3409.0,3.813439]
[1718386590158,0.45897084,3409.5,3409.0,3.813439]
[1718386590321,0.45897084,3409.5,3409.3,2.93313]
[1718386590529,0.45897084,3409.5,3409.3,2.9331]
[1718386590860,0.45897084,3409.5,3409.4,0.586632]
[1718386590861,3.39195084,3409.5,3409.4,0.586632]
[1718386591088,3.39195084,3409.5,3409.2,2.93321]
[1718386591226,0.45897084,3409.5,3409.3,2.93313]
[1718386591426,3.0522646,3409.7,3409.4,2.93306]
[1718386591860,3.0522646,3409.7,3409.0,0.880049]
[1718386592065,3.0522646,3409.7,3409.1,1.43344514]
[1718386592381,3.0522646,3409.7,3409.3,2.93313]
[1718386593070,2.9329,3409.6,3409.3,2.93313]
[1718386593279,0.1194446,3409.7,3409.4,2.93306]
[1718386593280,3.0522646,3409.7,3409.4,2.93306]
[1718386593739,3.0522646,3409.7,3409.3,2.93313]
[1718386593740,2.9329,3409.6,3409.3,2.93313]
[1718386593936,2.9329,3409.6,3409.0,2.93337]
[1718386594248,2.9329,3409.6,3409.2,2.93317]
[1718386594449,2.93314,3409.4,3409.1,3.76285]
[1718386595072,2.93298,3409.5,3409.1,0.82954]
[1718386595258,2.93298,3409.5,3408.9,5.36197]
[1718386595464,2.93298,3409.5,3408.9,6.79543514]
[1718386595465,2.93325,3409.2,3408.9,6.79543514]
[1718386596181,2.93316,3409.3,3409.0,2.9334]
[1718386598559,0.1194446,3409.7,3409.4,2.93305]
[1718386598766,0.1194446,3409.7,3409.6,2.93289]
[1718386598933,0.1194446,3409.7,3409.6,4.36633514]
[1718386599366,0.1194446,3409.7,3409.6,5.09627365]
[1718386599539,0.18477036,3409.7,3409.6,5.09627365]
[1718386600464,0.1194446,3409.7,3409.6,5.09627365]
[1718386602703,0.1848023,3409.7,3409.6,5.09627365]
[1718386603042,0.1194446,3409.7,3409.6,5.09627365]
[1718386603258,0.1194446,3409.7,3409.6,8.02916365]
[1718386603565,0.1194446,3409.7,3409.6,5.09627365]
[1718386604189,0.1194446,3409.7,3409.6,8.02916365]
[1718386605440,0.1194446,3409.7,3409.6,9.79316365]
[1718386605641,0.1194446,3409.7,3409.6,12.72605365]
[1718386606039,0.1194446,3409.7,3409.6,9.79316365]
[1718386606244,0.1194446,3409.7,3409.6,8.02916365]
[1718386607051,0.18259814,3409.7,3409.6,8.02916365]
[1718386607614,0.1194446,3409.7,3409.6,8.02916365]
[1718386609075,0.18265809,3409.7,3409.6,8.02916365]
[1718386609584,0.1194446,3409.7,3409.6,8.02916365]
[1718386609787,0.1194446,3409.7,3409.3,35.0]
[1718386609788,0.1194446,3409.7,3409.3,2.93314]
[1718386609994,2.93313,3409.4,3409.1,2.9333]
[1718386610194,2.93299,3409.5,3409.3,2.93314]
[1718386610485,2.93292,3409.6,3409.3,2.93314]
[1718386610673,2.93292,3409.6,3409.3,1.43358751]
[1718386610674,2.93298,3409.5,3409.3,1.43358751]
[1718386611286,2.93298,3409.5,3409.2,4.36667514]
[1718386611857,2.93291,3409.6,3409.3,2.93314]
[1718386613901,2.933,3409.5,3409.3,2.93314]
[1718386614190,2.93292,3409.6,3409.3,2.93314]
[1718386615704,2.93299,3409.5,3409.2,4.36666514]
[1718386615881,2.93332,3409.2,3408.9,2.93346]
[1718386616092,2.93332,3409.2,3408.9,5.66056714]
[1718386616456,2.93333,3409.1,3408.9,1.293662]
[1718386616961,0.06288478,3409.0,3408.9,1.293662]
[1718386617156,2.93364,3408.8,3408.5,2.93381]
[1718386617371,0.0627463,3408.7,3408.5,4.36725514]
[1718386617584,2.93364,3408.8,3408.5,4.36725514]
[1718386617788,2.9335,3408.9,3408.5,4.36725514]
[1718386617789,2.99626931,3408.7,3408.5,1.43344514]
[1718386617958,0.06259931,3408.7,3408.5,4.36726514]
[1718386618159,0.06259931,3408.7,3408.4,2.9339]
[1718386618160,2.93376,3408.6,3408.4,2.9339]
[1718386618365,3.8553715,3408.9,3408.1,2.93411]
[1718386618366,2.93394,3408.4,3408.1,2.93411]
[1718386618590,0.06230279,3408.3,3408.2,2.43205114]
[1718386618971,2.93401,3408.3,3408.2,0.998606]
[1718386619400,2.9341,3408.2,3407.9,4.69835]
[1718386619595,2.99622096,3408.3,3408.0,4.36768514]
[1718386619912,0.06209861,3408.1,3408.0,4.36768514]
[1718386620065,2.93403,3408.3,3408.0,4.36768514]
[1718386620399,0.06214479,3408.2,3408.0,4.36768514]
[1718386620610,0.06214479,3408.2,3408.1,0.90660351]
[1718386620765,2.9341,3408.2,3408.1,0.90660351]
[1718386620959,2.9341,3408.2,3408.0,1.43344514]
[1718386621301,2.93403,3408.3,3408.0,4.36769514]
[1718386621594,2.93416,3408.2,3407.9,2.93433]
[1718386621804,2.93401,3408.3,3408.0,2.93426]
[1718386622100,0.06209861,3408.1,3408.0,2.93426]
[1718386622259,0.9218715,3408.8,3408.6,2.93368]
[1718386622462,2.93325,3409.2,3408.7,2.9336]
[1718386622671,2.93316,3409.3,3409.0,2.93334]
[1718386623100,3.1831715,3409.6,3408.4,2.3151]
[1718386623303,2.93356,3408.9,3408.6,2.93372]
[1718386623490,2.93356,3408.9,3408.7,2.93366]
[1718386623696,2.93356,3408.9,3408.6,2.93373]
[1718386625126,2.93356,3408.9,3408.5,0.701311]
[1718386625416,2.1510335,3409.5,3408.6,1.49211809]
[1718386625625,2.93333,3409.1,3408.8,2.93352]
[1718386625773,2.93349,3408.9,3408.7,2.93366]
[1718386626110,2.93349,3408.9,3408.6,4.36717514]
[1718386626290,2.93349,3408.9,3408.7,3.66374251]
[1718386626692,2.93341,3409.0,3408.8,2.93358]
[1718386628917,2.93341,3409.0,3408.7,0.73009251]
[1718386629215,2.93341,3409.0,3408.7,2.93366]
[1718386629409,2.93334,3409.1,3408.8,2.93357]
[1718386630517,2.93324,3409.2,3408.9,2.93349]
[1718386630737,2.93307,3409.4,3408.9,2.93346]
[1718386630879,3.9741561,3409.7,3408.9,2.93346]
[1718386630880,1.0413161,3409.7,3409.2,2.93323]
[1718386631083,0.1194446,3409.7,3409.2,4.36667514]
[1718386631387,0.1194446,3409.7,3409.3,2.93314]
[1718386632011,2.93289,3409.6,3409.4,2.93305]
[1718386632219,2.99139957,3409.6,3409.4,2.93305]
[1718386632428,0.05850957,3409.6,3409.4,3.66302251]
[1718386632725,0.05850957,3409.6,3409.5,2.93298]
[1718386633029,0.05850957,3409.6,3409.5,7.29940514]
[1718386635705,0.05850957,3409.6,3409.5,4.36642514]
[1718386637895,2.93315,3409.3,3409.0,2.93333]
[1718386638109,2.93315,3409.3,3409.1,4.43344514]
[1718386638310,0.05855082,3409.2,3409.1,4.43344514]
[1718386638714,2.93315,3409.3,3409.1,4.43344514]
[1718386638910,2.99216235,3409.2,3409.0,1.19925665]
[1718386639110,2.99216235,3409.2,3408.9,3.66352651]
[1718386639312,2.93333,3409.1,3408.6,4.764]
[1718386639611,2.93334,3409.1,3408.8,2.9335]
[1718386639831,2.93298,3409.5,3409.2,2.93321]
[1718386640008,2.93307,3409.4,3409.2,2.93321]
[1718386640802,2.933,3409.5,3409.2,2.93321]
[1718386641003,3.0522646,3409.7,3409.1,2.93332]
[1718386641004,0.1194446,3409.7,3409.5,2.93291]
[1718386641230,0.1194446,3409.7,3409.5,4.36635514]
[1718386641869,3.0522546,3409.7,3409.5,4.36635514]
[1718386642319,0.1194446,3409.7,3409.5,4.36635514]
[1718386642707,3.0522646,3409.7,3409.5,1.43344514]
[1718386643420,0.1194446,3409.7,3409.5,5.33143695]
[1718386644352,3.0522746,3409.7,3409.5,2.39846695]
[1718386644651,2.93306,3409.5,3409.1,4.69729]
[1718386644810,2.93308,3409.4,3409.2,4.36666514]
[1718386645003,2.93339,3409.1,3408.7,5.93365]
[1718386645209,2.93339,3409.1,3408.8,4.36699514]
[1718386647062,2.93341,3409.0,3408.8,4.36699514]
[1718386647359,2.93341,3409.0,3408.8,6.30446865]
[1718386648447,2.93324,3409.2,3408.9,2.93349]
[1718386649076,2.93338,3409.1,3408.8,6.30446865]
[1718386649228,2.93334,3409.1,3408.8,6.30446865]
[1718386649577,2.93308,3409.4,3409.0,2.9334]
[1718386649861,2.93308,3409.4,3409.1,3.56373187]
[1718386651235,2.93324,3409.2,3408.8,3.37091865]
[1718386651436,2.9333,3409.2,3408.9,5.93347]
[1718386651940,2.93332,3409.1,3408.9,3.0]
[1718386652354,2.93316,3409.3,3408.9,5.93348]
[1718386652681,2.93332,3409.1,3409.0,1.22380586]
[1718386653745,2.93325,3409.2,3409.0,1.22380586]
[1718386653991,2.93317,3409.3,3409.0,4.15719586]
[1718386654958,2.93317,3409.3,3409.1,2.93332]
[1718386655277,2.93301,3409.5,3409.2,3.94229159]
[1718386655641,2.93306,3409.4,3409.2,3.94229159]
[1718386659783,0.1194446,3409.7,3409.3,4.36655514]
[1718386659961,0.1194446,3409.7,3409.5,2.93291]
[1718386660789,2.93292,3409.6,3409.3,2.93314]
[1718386660958,2.93306,3409.4,3409.2,3.94227159]
[1718386661160,2.933,3409.5,3409.1,2.93329]
[1718386661350,0.1194446,3409.7,3409.2,1.43344514]
[1718386661556,2.9329,3409.6,3409.2,1.43344514]
[1718386661802,2.93298,3409.5,3409.3,2.93308]
[1718386662391,0.05640473,3409.4,3409.3,2.93308]
[1718386662562,0.05640473,3409.4,3409.3,4.0787771]
[1718386662770,2.93292,3409.6,3409.3,4.0787771]
[1718386663071,3.0522746,3409.7,3409.4,2.93303]
[1718386663286,0.05645087,3409.5,3409.4,2.93303]
[1718386663454,0.05645087,3409.5,3409.4,3.77755522]
[1718386663654,0.1194446,3409.7,3409.6,5.86578]
[1718386663855,2.93298,3409.5,3409.4,0.84452522]
[1718386664159,2.93298,3409.5,3409.1,3.0]
[1718386664524,2.93298,3409.5,3409.1,1.43344514]
[1718386664728,2.93298,3409.5,3409.1,4.43344514]
[1718386664888,2.93298,3409.5,3409.2,2.93316]
[1718386665086,2.93298,3409.5,3409.2,4.0855331]
[1718386667028,2.93329,3409.2,3408.9,2.93343]
[1718386667237,2.93333,3409.1,3408.8,4.36700514]
[1718386667432,2.93326,3409.2,3408.9,5.93349]
[1718386667602,2.93326,3409.2,3408.9,7.43994951]
[1718386667931,2.93335,3409.1,3408.9,4.50645951]
[1718386670438,2.93335,3409.1,3408.9,7.43994951]
[1718386672227,2.93326,3409.2,3408.9,7.43994951]
[1718386672425,2.93326,3409.2,3409.0,1.18069747]
[1718386673638,2.93317,3409.3,3409.0,4.11409747]
[1718386675207,2.93324,3409.2,3409.0,4.11409747]
[1718386677253,0.05605061,3409.1,3409.0,4.11409747]
[1718386677813,0.05605061,3409.1,3409.0,1.18069747]
[1718386678061,0.05605061,3409.1,3408.4,2.93391]
[1718386678224,0.05605061,3409.1,3408.5,4.36727514]
[1718386678225,2.93364,3408.8,3408.5,4.36727514]
[1718386678413,0.05586597,3408.7,3408.6,3.0]
[1718386678619,2.93364,3408.8,3408.6,3.0]
[1718386678942,0.05586597,3408.7,3408.6,3.0]
[1718386679147,6.2850915,3408.9,3408.6,3.0]
[1718386679314,2.98952597,3408.7,3408.5,1.43344514]
[1718386679627,0.05571414,3408.6,3408.5,4.43344514]
[1718386680480,0.05571414,3408.6,3408.1,2.9341]
[1718386680617,2.93377,3408.6,3408.3,2.93401]
[1718386680817,0.05566797,3408.5,3408.4,3.0]
[1718386681949,0.05566797,3408.5,3408.3,2.93401]
[1718386682425,2.93394,3408.4,3408.2,2.14215514]
[1718386682624,2.93394,3408.4,3407.7,2.93449]
[1718386682625,2.93418,3408.1,3407.7,1.764]
[1718386682851,2.9345,3407.8,3407.3,5.25137]
[1718386683051,2.9345,3407.8,3407.4,1.43344514]
[1718386683270,0.05504665,3408.0,3407.7,2.93452]
[1718386683271,2.93429,3408.0,3407.7,2.93452]
[1718386683445,2.93432,3408.0,3407.7,2.93452]
[1718386683866,0.9218715,3408.2,3408.1,5.86836]
[1718386684066,3.8554615,3408.8,3408.4,2.93384]
[1718386684240,2.93359,3408.8,3408.4,2.93384]
[1718386684583,2.93359,3408.8,3408.4,3.95738651]
[1718386684782,2.93369,3408.7,3408.4,3.95738651]
[1718386685235,2.93376,3408.6,3408.3,2.93399]
[1718386686104,2.93376,3408.6,3408.4,2.93392]
[1718386686395,2.93367,3408.7,3408.4,2.93392]
[1718386688485,0.9218715,3409.1,3408.5,1.49211955]
[1718386688654,0.9218715,3409.4,3408.8,4.6975]
[1718386688981,2.9329,3409.6,3409.3,2.93313]
[1718386692072,0.1194446,3409.7,3409.5,2.93298]
[1718386692576,2.93291,3409.6,3409.3,4.36657514]
[1718386692779,2.93298,3409.5,3409.1,2.93331]
[1718386692948,2.9333,3409.2,3408.9,2.93348]
[1718386693151,2.93315,3409.3,3408.9,5.77922914]
[1718386693551,2.93315,3409.3,3409.0,2.93334]
[1718386694445,2.93294,3409.6,3409.0,1.43344514]
[1718386694686,2.93294,3409.6,3409.2,2.93322]
[1718386694687,2.93305,3409.5,3409.2,2.93322]
[1718386695591,2.93291,3409.6,3409.3,2.93314]
[1718386696269,3.0522646,3409.7,3409.5,2.93296]
[1718386696270,0.1194446,3409.7,3409.5,2.93296]
[1718386696879,3.0522546,3409.7,3409.5,2.93296]
[1718386697450,0.1194446,3409.7,3409.6,2.93289]
[1718386697988,0.1194446,3409.7,3409.5,4.36639514]
[1718386698867,0.1194446,3409.7,3409.6,2.93289]
[1718386699392,0.1194446,3409.7,3409.5,1.43344514]
[1718386699393,0.1194446,3409.7,3409.5,4.36641514]
[1718386699591,3.0522746,3409.7,3409.3,2.93314]
[1718386699885,3.0522746,3409.7,3409.3,3.80491169]
[1718386700453,2.93295,3409.6,3409.3,0.87177169]
[1718386700763,2.93324,3409.2,3408.8,2.9335]
[1718386700958,2.93334,3409.1,3408.8,1.43344514]
[1718386701302,2.93334,3409.1,3408.8,4.43344514]
[1718386702161,2.93334,3409.1,3408.8,7.36701514]
[1718386702388,2.93334,3409.1,3408.8,8.57349165]
[1718386704384,2.93334,3409.1,3408.9,2.93348]
[1718386706457,2.93334,3409.1,3408.8,8.57348165]
[1718386706653,2.93367,3408.7,3408.4,2.9339]
[1718386706859,2.93366,3408.7,3408.4,1.43344514]
[1718386707390,2.98848085,3408.6,3408.4,1.43344514]
[1718386708168,2.98848085,3408.6,3408.1,2.93417]
[1718386708375,2.93402,3408.3,3408.1,1.43344514]
[1718386708989,0.05416133,3408.2,3408.1,1.43344514]
[1718386709203,0.05416133,3408.2,3408.1,2.34005665]
[1718386710680,0.05416133,3408.2,3407.8,2.93443]
[1718386710906,2.93427,3408.0,3407.8,1.43344514]
[1718386711268,2.93445,3407.8,3407.5,2.93469]
[1718386711462,2.93445,3407.8,3407.6,1.43344514]
[1718386711812,0.05396079,3407.7,3407.6,4.36805514]
[1718386712094,0.05396079,3407.7,3407.6,5.27473365]
[1718386712294,2.93437,3407.9,3407.6,5.27473365]
[1718386712697,0.05452636,3407.8,3407.6,5.27473365]
[1718386713174,2.93437,3407.9,3407.6,5.27473365]
[1718386713380,0.05448016,3407.7,3407.6,5.27473365]
[1718386713578,2.93437,3407.9,3407.6,5.27473365]
[1718386713782,2.98857764,3407.7,3407.3,2.93485]
[1718386713976,2.93461,3407.6,3407.4,4.43344514]
[1718386714192,2.9347,3407.5,3407.4,3.0]
[1718386714367,2.9347,3407.5,3407.3,3.0]
[1718386714569,2.93478,3407.4,3407.0,7.31]
[1718386714884,2.93496,3407.2,3407.0,1.43344514]
[1718386715090,2.93504,3407.1,3407.0,1.43344514]
[1718386715327,0.05357773,3407.1,3407.0,1.43344514]
[1718386715600,2.93479,3407.4,3407.0,1.43344514]
[1718386715774,0.05357773,3407.1,3407.0,1.43344514]
[1718386715976,2.93479,3407.4,3407.0,4.30033542]
[1718386716300,0.05357773,3407.1,3407.0,4.30033542]
[1718386716479,2.93479,3407.4,3407.0,4.30033542]
[1718386716675,2.93479,3407.4,3407.0,1.43344514]
[1718386717025,2.98856016,3407.3,3407.0,4.36857514]
[1718386720382,2.93496,3407.2,3407.0,1.43344514]
[1718386721080,0.05312601,3407.1,3407.0,4.36857514]
[1718386721482,2.93488,3407.3,3407.0,4.36857514]
[1718386721981,0.05317222,3407.2,3407.0,4.36857514]
[1718386722175,2.93488,3407.3,3407.0,7.23546542]
[1718386722486,0.05133223,3407.1,3407.0,10.56939]
[1718386722806,2.93403,3408.3,3407.9,2.93429]
[1718386722976,2.9343,3408.0,3407.7,2.9345]
[1718386723479,0.05145134,3407.9,3407.7,7.23483542]
[1718386723662,2.9343,3408.0,3407.7,7.23483542]
[1718386723863,2.93444,3407.8,3407.6,35.0]
[1718386724099,2.93453,3407.7,3407.4,2.93472]
[1718386724278,2.93453,3407.7,3407.5,1.43344514]
[1718386724483,0.0512214,3407.6,3407.5,36.43344514]
[1718386724702,0.0512214,3407.6,3407.5,39.36811514]
[1718386724909,0.0512214,3407.6,3407.5,7.23500542]
[1718386725102,2.93446,3407.8,3407.5,4.36811514]
[1718386725706,0.05188331,3407.7,3407.5,4.36811514]
[1718386726104,0.05128227,3407.6,3407.5,4.36811514]
[1718386726498,0.05183712,3407.6,3407.5,4.36811514]
[1718386726702,2.93446,3407.8,3407.5,4.36811514]
[1718386726934,0.05188331,3407.7,3407.5,4.36811514]
[1718386727096,0.05188331,3407.7,3407.5,5.27461265]
[1718386727294,2.93446,3407.8,3407.5,5.27461265]
[1718386727531,0.05128227,3407.6,3407.5,5.27461265]
[1718386727739,2.93446,3407.8,3407.5,5.27461265]
[1718386727918,0.05126652,3407.6,3407.5,5.27461265]
[1718386728299,2.93446,3407.8,3407.5,5.27461265]
[1718386728501,0.05163168,3407.6,3407.5,5.27461265]
[1718386728700,0.05158208,3407.6,3407.5,5.27461265]
[1718386728998,2.93446,3407.8,3407.5,5.27461265]
[1718386729218,0.05155165,3407.6,3407.5,5.27461265]
[1718386729399,2.93446,3407.8,3407.5,5.27461265]
[1718386729596,0.05179579,3407.6,3407.5,5.27461265]
[1718386729807,2.93453,3407.7,3407.5,4.36811514]
[1718386730104,0.05155165,3407.6,3407.5,4.36811514]
[1718386731606,2.93446,3407.8,3407.5,4.36811514]
[1718386731809,0.05155165,3407.6,3407.5,4.36811514]
[1718386732115,2.93446,3407.8,3407.5,4.36811514]
[1718386732335,0.05155165,3407.6,3407.5,4.36811514]
[1718386732503,2.93446,3407.8,3407.5,5.27461365]
[1718386732704,0.05184199,3407.7,3407.5,5.27461365]
[1718386733217,0.05155165,3407.6,3407.5,5.27461365]
[1718386733418,2.93446,3407.8,3407.5,5.27461365]
[1718386733630,0.05179579,3407.6,3407.5,4.36811514]
[1718386733832,2.93446,3407.8,3407.5,4.36811514]
[1718386734032,0.05155165,3407.6,3407.5,4.36811514]
[1718386734434,2.93446,3407.8,3407.5,4.36811514]
[1718386734631,0.05155165,3407.6,3407.5,4.36811514]
[1718386734831,2.93446,3407.8,3407.5,4.36811514]
[1718386735038,0.05155165,3407.6,3407.5,4.36811514]
[1718386735208,2.93446,3407.8,3407.5,4.36811514]
[1718386735549,0.05062165,3407.6,3407.5,4.36811514]
[1718386735902,2.93446,3407.8,3407.5,4.36811514]
[1718386736106,0.04979215,3407.6,3407.5,4.36811514]
[1718386736321,2.93438,3407.9,3407.6,2.93461]
[1718386736854,5.25066,3408.5,3407.7,1.43344514]
[1718386737058,2.93414,3408.2,3407.9,2.93434]
[1718386737822,2.93419,3408.1,3407.9,2.93434]
[1718386738051,2.93412,3408.2,3407.9,2.93434]
[1718386739321,2.93421,3408.1,3407.8,5.86886]
[1718386739545,2.93421,3408.1,3407.9,2.93435]
[1718386740274,2.93421,3408.1,3407.8,2.93441]
[1718386741173,2.9343,3408.0,3407.7,4.36794514]
[1718386741372,2.9343,3408.0,3407.4,7.69674]
[1718386741373,2.93459,3407.7,3407.4,5.93476]
[1718386741690,2.93459,3407.7,3407.4,7.36820514]
[1718386741895,0.05011959,3407.6,3407.4,7.36820514]
[1718386742361,2.93459,3407.7,3407.4,7.36820514]
[1718386742698,2.93461,3407.6,3407.4,4.43344514]
[1718386742845,2.93461,3407.6,3407.4,3.0]
[1718386743566,0.05007339,3407.5,3407.4,3.0]
[1718386744171,2.98477339,3407.5,3407.2,4.69694]
[1718386744488,2.93491,3407.3,3407.0,2.93513]
[1718386744700,2.93491,3407.3,3407.1,1.43344514]
[1718386744845,0.05004275,3407.2,3407.1,1.43344514]
[1718386745044,2.93491,3407.3,3407.1,1.43344514]
[1718386745277,0.05004275,3407.2,3407.1,1.43344514]
[1718386745482,0.05004275,3407.2,3407.1,4.36848514]
[1718386745685,2.9348,3407.4,3407.1,4.36848514]
[1718386746057,0.05008896,3407.3,3407.1,4.36848514]
[1718386746468,2.9348,3407.4,3407.1,4.36848514]
[1718386749552,0.04888563,3407.3,3407.1,4.36848514]
[1718386749790,0.04888563,3407.3,3407.2,2.93496]
[1718386750007,2.93463,3407.6,3407.3,2.93485]
[1718386750166,5.27267,3407.9,3407.4,2.93476]
[1718386750369,2.93451,3407.8,3407.5,2.93469]
[1718386750650,2.98362663,3407.8,3407.5,2.93469]
[1718386751087,2.98362663,3407.8,3407.6,2.9346]
[1718386751088,0.04911663,3407.8,3407.6,2.9346]
[1718386751647,0.04911663,3407.8,3407.7,2.93453]
[1718386752049,0.04911663,3407.8,3407.6,2.93459]
[1718386752675,0.04911663,3407.8,3407.6,2.93461]
[1718386753397,0.04911663,3407.8,3407.7,7.30250514]
[1718386753604,0.9218715,3408.3,3408.1,2.93418]
[1718386753892,1.53479392,3408.6,3408.3,2.93394]
[1718386753893,2.93375,3408.6,3408.3,2.93394]
[1718386754388,2.93375,3408.6,3408.3,2.93399]
[1718386755254,3.8556215,3408.6,3408.3,2.93399]
[1718386756312,2.93367,3408.7,3408.3,2.93399]
[1718386756313,0.9218715,3408.7,3408.6,2.93375]
[1718386756610,1.8417527,3409.3,3408.6,2.93375]
[1718386756611,0.9218715,3409.1,3408.8,2.93351]
[1718386756771,0.9218715,3409.1,3408.7,2.93366]
[1718386756772,3.8551215,3409.2,3408.9,2.93348]
[1718386757308,2.93325,3409.2,3408.9,2.93348]
[1718386760364,2.93334,3409.1,3408.8,2.93356]
[1718386763310,2.93298,3409.5,3408.9,4.36686514]
[1718386763311,3.8548515,3409.5,3408.9,4.36686514]
[1718386763508,3.8548515,3409.5,3409.1,2.93327]
[1718386763509,2.93313,3409.4,3409.1,2.93327]
[1718386764588,2.933,3409.5,3409.2,2.93322]
[1718386765399,2.9329,3409.6,3409.2,2.93322]
[1718386765400,2.93307,3409.4,3409.2,2.93322]
[1718386767205,0.04866441,3409.3,3409.2,2.93322]
[1718386770579,0.04866441,3409.3,3409.2,3.56470475]
[1718386770777,3.0522546,3409.7,3409.4,2.93304]
[1718386771020,0.04813589,3409.6,3409.4,2.93304]
[1718386771215,0.04813589,3409.6,3409.5,2.93298]
[1718386774786,0.04813589,3409.6,3409.5,9.65990514]
[1718386775005,0.1194446,3409.7,3409.6,5.86578]
[1718386775185,0.1194446,3409.7,3409.6,7.29922514]
[1718386775514,0.1194446,3409.7,3409.6,10.29922514]
[1718386776331,0.1194446,3409.7,3409.6,12.06122514]
[1718386779899,0.1194446,3409.7,3409.6,4.43344514]
[1718386780106,0.1194446,3409.7,3409.2,0.63148475]
[1718386780301,0.1194446,3409.7,3408.3,6.29924022]
[1718386780302,3.0523146,3409.7,3409.4,2.93306]
[1718386780499,3.0523146,3409.7,3409.5,3.0]
[1718386780705,0.04568973,3409.6,3409.4,1.43344514]
[1718386780898,0.04568973,3409.6,3409.4,4.36649514]
[1718386781193,0.04568973,3409.6,3409.5,3.0]
[1718386782032,0.04568973,3409.6,3409.5,3.85943311]
[1718386784691,2.97857973,3409.6,3409.5,3.85943311]
[1718386784893,0.04568973,3409.6,3409.5,0.85943311]
[1718386786500,0.04568973,3409.6,3409.5,7.04651454]
[1718386786728,0.04568973,3409.6,3409.5,9.98785825]
[1718386786901,0.1194446,3409.7,3409.6,2.93289]
[1718386787092,0.1194446,3409.7,3409.6,8.82140697]
[1718386787292,0.16518047,3409.7,3409.6,8.82140697]
[1718386787829,0.16518047,3409.7,3409.6,9.87440697]
[1718386788728,0.16518047,3409.7,3409.6,8.82140697]
[1718386790734,0.16518047,3409.7,3409.6,11.75429697]
[1718386791222,0.1194446,3409.7,3409.6,11.75429697]
[1718386794897,0.16363844,3409.7,3409.6,11.75429697]
[1718386795121,0.1194446,3409.7,3409.6,11.75429697]
[1718386795518,0.1194446,3409.7,3409.6,13.51629697]
[1718386796521,0.1194446,3409.7,3409.6,16.51629697]
[1718386796718,0.1194446,3409.7,3409.6,11.82140697]
[1718386796924,0.1194446,3409.7,3409.6,14.75429697]
[1718386797150,0.1194446,3409.7,3409.6,16.51629697]
[1718386799440,2.93193,3410.8,3410.4,2.93215]
[1718386799811,2.93197,3410.7,3410.4,2.93215]
[1718386800343,2.93197,3410.7,3410.5,2.9321]
[1718386800568,0.9218715,3411.1,3410.8,2.93178]
[1718386800847,2.93162,3411.1,3410.8,2.93184]
[1718386801435,2.93162,3411.1,3410.7,2.93194]
[1718386801614,2.93162,3411.1,3410.8,2.93184]
[1718386803015,0.9218715,3411.4,3411.0,2.93167]
[1718386803217,2.93109,3411.7,3411.3,2.93142]
[1718386803414,2.93119,3411.6,3411.3,2.93142]
[1718386803853,5.35189,3411.6,3411.3,2.93142]
[1718386804064,2.9311,3411.7,3411.4,2.93133]
[1718386806158,2.93083,3412.0,3411.7,2.93102]
[1718386806359,2.93092,3411.9,3411.7,2.93102]
[1718386806521,2.53609067,3412.2,3411.7,2.93101]
[1718386806862,2.93093,3411.9,3411.7,2.93101]
[1718386807020,2.93093,3411.9,3411.5,2.93125]
[1718386807021,2.93093,3411.9,3411.6,2.93115]
[1718386807360,2.53609067,3412.2,3411.6,0.59105861]
[1718386807852,2.93093,3411.9,3411.6,0.59105861]
[1718386808038,2.93093,3411.9,3411.4,4.36478514]
[1718386808039,2.9311,3411.7,3411.4,2.93133]
[1718386808245,2.93121,3411.6,3411.3,0.72965351]
[1718386808634,2.93121,3411.6,3411.3,3.66107351]
[1718386808957,2.93121,3411.6,3410.8,3.95472951]
[1718386808958,2.93135,3411.4,3410.8,3.95472951]
[1718386809119,2.9315,3411.3,3411.0,2.93167]
[1718386809462,2.9315,3411.3,3410.8,3.95478951]
[1718386809676,2.93176,3411.0,3410.8,1.02292951]
[1718386809860,2.93177,3410.9,3410.8,1.02292951]
[1718386810037,2.93177,3410.9,3410.6,2.93202]
[1718386810234,2.93177,3410.9,3410.6,4.36546514]
[1718386810433,2.93177,3410.9,3410.3,1.762]
[1718386810434,2.93163,3411.1,3410.3,2.93221]
[1718386810654,2.93205,3410.6,3410.3,4.36565514]
[1718386810953,2.93205,3410.6,3410.3,6.05974365]
[1718386811316,2.93196,3410.7,3410.3,3.12753365]
[1718386811532,2.93196,3410.7,3410.4,2.9322]
[1718386812166,2.93204,3410.6,3410.3,6.05981365]
[1718386812465,0.04006806,3410.6,3409.5,4.69495]
[1718386812764,2.93265,3409.9,3409.6,4.36626514]
[1718386813061,0.04006806,3410.6,3409.6,4.36626514]
[1718386813062,2.93221,3410.4,3409.9,2.93256]
[1718386813266,2.93239,3410.2,3409.9,2.93256]
[1718386813768,2.93247,3410.1,3409.8,2.9327]
[1718386813926,2.93247,3410.1,3409.8,4.36614514]
[1718386815729,2.93247,3410.1,3409.9,2.93263]
[1718386815925,2.93215,3410.5,3409.8,1.43344514]
[1718386816129,2.93228,3410.4,3410.1,2.93246]
[1718386818761,2.93228,3410.4,3410.2,2.93236]
[1718386819342,2.93228,3410.4,3410.1,2.93244]
[1718386821232,2.93228,3410.4,3410.2,2.93236]
[1718386821430,2.93214,3410.5,3410.2,2.93236]
[1718386822474,3.39029338,3411.2,3410.9,2.93172]
[1718386822841,0.45875338,3411.2,3410.8,2.93184]
[1718386823059,2.93177,3410.9,3410.6,2.93203]
[1718386823248,2.93177,3410.9,3410.6,4.36547514]
[1718386823448,2.93177,3410.9,3410.2,12.73417551]
[1718386823449,2.93195,3410.7,3410.2,8.03983551]
[1718386823770,2.93205,3410.6,3410.3,5.93228]
[1718386823929,2.93205,3410.6,3410.3,3.0]
[1718386824333,2.93213,3410.5,3410.3,3.0]
[1718386824566,2.93196,3410.7,3410.2,0.72983551]
[1718386824567,2.93229,3410.3,3410.2,0.72983551]
[1718386824765,2.93229,3410.3,3410.0,2.93255]
[1718386824943,2.93222,3410.4,3410.1,5.18990349]
[1718386827976,2.9323,3410.3,3410.1,5.18990349]
[1718386828346,2.9323,3410.3,3410.1,2.25745349]